bitfinex/quotes_BTCUSD_20230113
["timestamp","ask_amount","ask_price","bid_price","bid_amount"]
[1673572206162,0.1415,18809.0,18806.0,0.02610169]
[1673572207738,0.1415,18809.0,18806.0,0.16510169]
[1673572207739,0.1435,18809.0,18806.0,0.16510169]
[1673572208950,0.79206548,18809.0,18806.0,0.16510169]
[1673572209430,0.54534959,18808.0,18806.0,0.16510169]
[1673572210157,0.1415,18808.0,18807.0,0.02862406]
[1673572210399,0.283,18808.0,18807.0,0.02862406]
[1673572210645,0.286,18808.0,18807.0,0.02868406]
[1673572211158,0.286,18808.0,18807.0,6e-05]
[1673572211403,1.03980677,18808.0,18807.0,6e-05]
[1673572212151,1.03680677,18808.0,18807.0,6e-05]
[1673572212396,1.03980677,18808.0,18807.0,0.14006]
[1673572214972,1.47496677,18808.0,18807.0,0.14006]
[1673572215222,2.32516677,18808.0,18807.0,0.14006]
[1673572215938,1.47526677,18808.0,18807.0,0.14006]
[1673572216914,1.18160677,18808.0,18807.0,0.14006]
[1673572217152,1.47526677,18808.0,18807.0,0.14006]
[1673572218871,1.47526677,18808.0,18807.0,0.14]
[1673572219118,1.63368717,18808.0,18807.0,0.14]
[1673572219368,1.93368717,18808.0,18807.0,0.14]
[1673572219876,2.17135437,18808.0,18807.0,0.14]
[1673572220865,1.63368717,18808.0,18807.0,0.14]
[1673572221362,1.47526677,18808.0,18807.0,0.14]
[1673572221613,1.18160677,18808.0,18807.0,0.14]
[1673572221851,1.47526677,18808.0,18807.0,0.14]
[1673572222185,1.63368717,18808.0,18807.0,0.14]
[1673572222627,1.47526677,18808.0,18807.0,0.14]
[1673572223344,1.63368717,18808.0,18807.0,0.14]
[1673572223849,0.9798804,18808.0,18807.0,0.14]
[1673572224091,2.00483185,18808.0,18807.0,0.14]
[1673572224332,1.62549122,18808.0,18807.0,0.14]
[1673572225828,1.46716465,18808.0,18807.0,0.14]
[1673572226595,1.17350465,18808.0,18807.0,0.14]
[1673572226803,1.46716465,18808.0,18807.0,0.14]
[1673572227583,1.36716465,18808.0,18807.0,0.14]
[1673572228100,1.07350465,18808.0,18807.0,0.14]
[1673572229848,0.1448,18808.0,18807.0,0.14]
[1673572232841,0.1448,18808.0,18807.0,0.17189651]
[1673572233332,0.003,18808.0,18807.0,0.17189651]
[1673572237571,0.84376424,18808.0,18807.0,0.14]
[1673572241073,0.56106424,18808.0,18807.0,0.14]
[1673572242854,0.68501668,18811.0,18809.0,0.69926423]
[1673572243107,0.68501668,18811.0,18810.0,0.330575]
[1673572243608,0.68501668,18811.0,18809.0,0.90956917]
[1673572243609,0.01287078,18811.0,18809.0,0.90956917]
[1673572243854,0.01287078,18811.0,18810.0,0.36221732]
[1673572244112,0.01287078,18811.0,18810.0,0.46221732]
[1673572244353,0.01287078,18811.0,18810.0,0.36221732]
[1673572244863,0.05487078,18811.0,18810.0,0.36321732]
[1673572245618,0.05487078,18811.0,18810.0,0.13264232]
[1673572245864,0.05487078,18811.0,18810.0,0.46327732]
[1673572248050,0.05487078,18811.0,18810.0,0.60367732]
[1673572251006,0.05487078,18811.0,18810.0,0.60361732]
[1673572254012,0.05487078,18811.0,18810.0,0.571975]
[1673572254258,0.05487078,18811.0,18810.0,0.60039542]
[1673572254498,0.05487078,18811.0,18810.0,0.571975]
[1673572254750,0.05487078,18811.0,18810.0,0.60746575]
[1673572255488,0.01287078,18811.0,18810.0,0.60646575]
[1673572255735,0.01587078,18811.0,18810.0,0.70546575]
[1673572259129,0.01587078,18811.0,18810.0,0.13449075]
[1673572262397,0.01587078,18811.0,18810.0,0.56506575]
[1673572262868,0.04869198,18811.0,18810.0,0.70546575]
[1673572263124,0.04869198,18811.0,18810.0,0.70639012]
[1673572265851,0.04861945,18811.0,18810.0,0.67089937]
[1673572266310,0.04861945,18811.0,18810.0,0.6981475]
[1673572266554,0.04861945,18811.0,18810.0,0.67089937]
[1673572266799,0.04861945,18811.0,18810.0,0.70257163]
[1673572267049,0.04861945,18811.0,18810.0,0.53049937]
[1673572267566,0.04861945,18811.0,18810.0,0.7201685]
[1673572267810,0.04861945,18811.0,18810.0,0.68978226]
[1673572268042,0.04861945,18811.0,18810.0,0.72223244]
[1673572268282,0.04861945,18811.0,18810.0,0.68978226]
[1673572269476,0.04861945,18811.0,18810.0,0.72265479]
[1673572269710,0.04861945,18811.0,18810.0,0.68978226]
[1673572270189,0.04861945,18811.0,18810.0,0.72343486]
[1673572270691,0.04861945,18811.0,18810.0,0.56415197]
[1673572271203,0.04861945,18811.0,18810.0,0.65815197]
[1673572271447,0.04861945,18811.0,18810.0,0.62449937]
[1673572271660,0.04861945,18811.0,18810.0,0.81335907]
[1673572272969,0.01396401,18814.0,18811.0,0.1]
[1673572273212,0.01396401,18814.0,18812.0,0.330575]
[1673572273459,0.01396401,18814.0,18811.0,0.1]
[1673572274403,0.01396401,18814.0,18810.0,0.03280722]
[1673572274404,0.69582703,18813.0,18810.0,0.03280722]
[1673572274653,0.69582703,18813.0,18812.0,0.001]
[1673572275199,0.79582703,18813.0,18812.0,0.001]
[1673572275453,0.79582703,18813.0,18810.0,0.03280722]
[1673572275697,0.79582703,18813.0,18811.0,0.027]
[1673572276692,0.79582703,18813.0,18812.0,0.00092426]
[1673572276962,0.79582703,18813.0,18812.0,6e-05]
[1673572277679,0.79582703,18813.0,18812.0,0.00106]
[1673572277680,0.83582703,18813.0,18812.0,0.00106]
[1673572278153,0.14,18813.0,18812.0,0.00106]
[1673572279875,0.04,18813.0,18812.0,0.00106]
[1673572284794,0.07168729,18813.0,18812.0,0.00106]
[1673572285792,1.02020272,18813.0,18812.0,0.00106]
[1673572286043,1.29920025,18813.0,18812.0,0.00106]
[1673572286291,1.59286025,18813.0,18812.0,0.00106]
[1673572286537,1.29920025,18813.0,18812.0,0.00106]
[1673572287061,1.59920025,18813.0,18812.0,0.001]
[1673572287315,1.59286025,18813.0,18812.0,0.001]
[1673572288347,1.89286025,18813.0,18812.0,0.001]
[1673572288581,1.98706025,18813.0,18812.0,0.001]
[1673572289310,1.68706025,18813.0,18812.0,0.001]
[1673572289815,1.98706025,18813.0,18812.0,0.001]
[1673572290295,1.68706025,18813.0,18812.0,0.001]
[1673572291509,1.37017066,18813.0,18812.0,0.001]
[1673572291750,1.52846727,18813.0,18812.0,0.001]
[1673572292224,1.67017066,18813.0,18812.0,0.001]
[1673572292475,1.98706025,18813.0,18812.0,0.001]
[1673572292978,1.57254887,18813.0,18812.0,0.001]
[1673572293252,1.44405928,18813.0,18812.0,0.001]
[1673572294435,1.97029198,18813.0,18812.0,0.001]
[1673572295671,2.28677605,18813.0,18812.0,0.00088448]
[1673572296232,1.97029198,18813.0,18812.0,0.00088448]
[1673572296469,0.1,18812.0,18811.0,6e-05]
[1673572296720,1.23508879,18812.0,18811.0,6e-05]
[1673572296968,1.52874879,18812.0,18811.0,6e-05]
[1673572297199,2.12526563,18812.0,18811.0,6e-05]
[1673572298161,2.12526563,18812.0,18811.0,0.00806]
[1673572298162,1.60474879,18812.0,18811.0,0.00806]
[1673572298402,2.14727087,18812.0,18811.0,0.00806]
[1673572298645,1.60474879,18812.0,18811.0,0.00806]
[1673572299882,2.26074791,18812.0,18811.0,0.00806]
[1673572300885,1.94429538,18812.0,18811.0,0.00806]
[1673572301124,2.26074791,18812.0,18811.0,0.00806]
[1673572301385,1.60474879,18812.0,18811.0,0.00806]
[1673572301627,1.89570443,18812.0,18811.0,0.00806]
[1673572301944,2.05448016,18812.0,18811.0,0.00806]
[1673572304040,2.72506069,18812.0,18811.0,0.008]
[1673572304288,2.64464639,18812.0,18811.0,0.008]
[1673572304550,2.05448016,18812.0,18811.0,0.008]
[1673572305037,2.6728175,18812.0,18811.0,0.008]
[1673572305280,2.05448016,18812.0,18811.0,0.008]
[1673572305517,2.71473213,18812.0,18811.0,0.008]
[1673572305807,2.31862014,18812.0,18811.0,0.008]
[1673572306047,1.65836817,18812.0,18811.0,0.008]
[1673572306561,2.62159265,18812.0,18811.0,0.008]
[1673572307039,2.05448016,18812.0,18811.0,0.008]
[1673572307290,2.34878293,18812.0,18811.0,0.008]
[1673572307520,2.05448016,18812.0,18811.0,0.008]
[1673572307758,2.73592662,18812.0,18811.0,0.008]
[1673572308293,2.68730798,18812.0,18811.0,0.008]
[1673572308529,2.63206097,18812.0,18811.0,0.008]
[1673572309013,1.95061451,18812.0,18811.0,0.008]
[1673572309740,2.10972717,18812.0,18811.0,0.008]
[1673572309969,2.80531324,18812.0,18811.0,0.008]
[1673572310460,2.10972717,18812.0,18811.0,0.008]
[1673572310718,2.80337786,18812.0,18811.0,0.008]
[1673572310999,2.10972717,18812.0,18811.0,0.008]
[1673572311209,2.70325814,18812.0,18811.0,0.008]
[1673572311684,2.1123025,18812.0,18811.0,0.008]
[1673572311928,1.95321787,18812.0,18811.0,0.008]
[1673572312446,1.89797086,18812.0,18811.0,0.008]
[1673572312692,1.48801833,18812.0,18811.0,0.008]
[1673572312935,1.64604081,18812.0,18811.0,0.008]
[1673572313179,1.94604081,18812.0,18811.0,0.008]
[1673572314181,1.78801833,18812.0,18811.0,0.008]
[1673572314690,2.10447086,18812.0,18811.0,0.008]
[1673572316920,2.18707014,18812.0,18811.0,0.008]
[1673572317151,1.7526238,18812.0,18811.0,0.008]
[1673572317606,2.24810529,18812.0,18811.0,0.008]
[1673572318219,1.90634284,18812.0,18811.0,0.008]
[1673572318497,2.50388162,18812.0,18811.0,0.008]
[1673572319494,2.18742909,18812.0,18811.0,0.008]
[1673572320755,2.50388289,18812.0,18811.0,0.008]
[1673572321740,2.5039488,18812.0,18811.0,0.008]
[1673572321988,2.18742909,18812.0,18811.0,0.008]
[1673572322241,2.50395304,18812.0,18811.0,0.008]
[1673572322742,2.36255304,18812.0,18811.0,0.008]
[1673572324730,1.96644105,18812.0,18811.0,0.008]
[1673572324976,2.20393793,18812.0,18811.0,0.008]
[1673572325442,2.36255304,18812.0,18811.0,0.008]
[1673572327699,2.04602909,18812.0,18811.0,0.008]
[1673572328424,2.04472909,18812.0,18811.0,0.008]
[1673572328748,1.6486171,18812.0,18811.0,0.008]
[1673572329493,1.5726171,18812.0,18810.0,0.80006]
[1673572329742,1.1850571,18812.0,18811.0,0.003]
[1673572329959,1.1850571,18812.0,18810.0,0.80006]
[1673572329960,1.5727171,18812.0,18810.0,0.80006]
[1673572330196,1.5727171,18812.0,18811.0,0.003]
[1673572330197,1.2580571,18812.0,18811.0,0.003]
[1673572330428,1.5731171,18812.0,18810.0,0.80006]
[1673572330672,1.25413947,18811.0,18810.0,0.80306]
[1673572330911,1.54779947,18811.0,18810.0,0.80006]
[1673572331645,2.20433539,18811.0,18810.0,0.80006]
[1673572332408,2.25133539,18811.0,18810.0,0.80306]
[1673572335146,1.93434007,18811.0,18810.0,0.80306]
[1673572337133,2.25156269,18811.0,18810.0,0.80306]
[1673572337868,1.93434007,18811.0,18810.0,0.80306]
[1673572338858,1.53809592,18811.0,18810.0,0.80306]
[1673572339603,1.9346285,18811.0,18810.0,0.80306]
[1673572340055,1.9346285,18811.0,18810.0,0.803]
[1673572342026,1.9346285,18811.0,18810.0,0.80290852]
[1673572344946,1.85192451,18811.0,18810.0,0.80383289]
[1673572345186,1.55826451,18811.0,18810.0,0.80383289]
[1673572345672,1.39969989,18811.0,18810.0,0.80383289]
[1673572347749,1.24103382,18811.0,18810.0,0.80383289]
[1673572347999,1.2410396,18811.0,18810.0,0.80383289]
[1673572348470,1.00307164,18811.0,18810.0,0.80383289]
[1673572348711,1.2410396,18811.0,18810.0,0.80383289]
[1673572349439,1.00307164,18811.0,18810.0,0.80383289]
[1673572349679,1.2410396,18811.0,18810.0,0.80383289]
[1673572350948,1.2410396,18811.0,18810.0,0.80290852]
[1673572354625,1.2410396,18811.0,18810.0,0.80383289]
[1673572355113,1.00307164,18811.0,18810.0,0.80383289]
[1673572355378,1.2410396,18811.0,18810.0,0.80383289]
[1673572355625,1.00307164,18811.0,18810.0,0.80383289]
[1673572356398,1.2410396,18811.0,18810.0,0.80290852]
[1673572356915,1.2410396,18811.0,18810.0,0.80272609]
[1673572357191,1.18240388,18811.0,18810.0,0.80272609]
[1673572357429,1.34095719,18811.0,18810.0,0.80272609]
[1673572357924,1.34095793,18811.0,18810.0,0.80272609]
[1673572358414,1.49969989,18811.0,18810.0,0.80272609]
[1673572358672,1.35879989,18811.0,18810.0,0.80272609]
[1673572358919,1.10005345,18811.0,18810.0,0.80272609]
[1673572361220,1.20005345,18811.0,18810.0,0.80272609]
[1673572361474,0.20554957,18811.0,18810.0,1.16582389]
[1673572361723,0.047,18811.0,18810.0,1.16582389]
[1673572363176,0.047,18811.0,18810.0,0.83524889]
[1673572363669,0.047,18811.0,18810.0,1.16582389]
[1673572364169,0.047,18811.0,18810.0,1.26582389]
[1673572364903,0.047,18811.0,18810.0,1.16582389]
[1673572367391,0.047,18811.0,18810.0,0.83524889]
[1673572368155,0.047,18811.0,18810.0,1.16582389]
[1673572372286,0.047,18811.0,18810.0,0.83524889]
[1673572374014,0.04689192,18811.0,18810.0,0.80272609]
[1673572374280,0.58131298,18811.0,18810.0,0.80272609]
[1673572375007,0.73986255,18811.0,18810.0,0.80272609]
[1673572375271,0.8476456,18811.0,18810.0,0.80272609]
[1673572375533,1.419103,18811.0,18810.0,0.80272609]
[1673572375780,1.97163695,18811.0,18810.0,0.80272609]
[1673572376025,1.73366899,18811.0,18810.0,0.80272609]
[1673572376273,2.13020157,18811.0,18810.0,0.80272609]
[1673572376513,2.67500859,18811.0,18810.0,0.80272609]
[1673572376772,2.96656945,18811.0,18810.0,0.80272609]
[1673572377029,2.78988508,18811.0,18810.0,0.80272609]
[1673572377273,2.3933525,18811.0,18810.0,0.80272609]
[1673572378271,2.93618277,18811.0,18810.0,0.80272609]
[1673572378762,3.33208073,18811.0,18810.0,0.80272609]
[1673572379003,2.78925887,18811.0,18810.0,0.80272609]
[1673572379248,2.3933525,18811.0,18810.0,0.80272609]
[1673572379532,2.72173454,18811.0,18810.0,0.80272609]
[1673572379791,3.13426442,18811.0,18810.0,0.80272609]
[1673572380306,3.13426442,18811.0,18808.0,0.00102492]
[1673572380307,0.1,18810.0,18808.0,0.00102492]
[1673572380565,0.29873165,18809.0,18808.0,0.00102492]
[1673572380811,0.43406,18809.0,18808.0,6e-05]
[1673572381052,0.69239165,18809.0,18808.0,6e-05]
[1673572381546,1.43986759,18809.0,18808.0,6e-05]
[1673572382076,1.97736507,18809.0,18808.0,6e-05]
[1673572382566,1.83403342,18809.0,18808.0,0.01006]
[1673572382815,2.15069672,18809.0,18808.0,0.01006]
[1673572383053,1.99236643,18809.0,18808.0,0.01006]
[1673572386039,2.02471416,18809.0,18808.0,0.01006]
[1673572386777,1.51365618,18809.0,18808.0,0.01006]
[1673572387039,2.02215575,18809.0,18808.0,0.01006]
[1673572387529,2.03553416,18809.0,18808.0,0.01006]
[1673572387784,1.53365618,18809.0,18808.0,0.01006]
[1673572388281,1.53365618,18809.0,18808.0,0.01]
[1673572388529,2.16020995,18809.0,18808.0,0.01]
[1673572388757,2.05894164,18809.0,18808.0,0.01]
[1673572389293,1.53365618,18809.0,18808.0,0.01]
[1673572389534,1.85287048,18809.0,18808.0,0.01]
[1673572390282,2.09036796,18809.0,18808.0,0.01]
[1673572390537,1.85287048,18809.0,18808.0,0.01]
[1673572390796,1.61645252,18809.0,18808.0,0.01]
[1673572391299,0.76445951,18809.0,18808.0,0.01]
[1673572392286,1.04311951,18809.0,18806.0,0.03396416]
[1673572392555,0.61705951,18809.0,18808.0,0.009]
[1673572392800,0.75845951,18809.0,18808.0,0.009]
[1673572393048,1.05211951,18809.0,18808.0,0.009]
[1673572393329,1.04411951,18809.0,18806.0,0.03396416]
[1673572393591,0.1414,18808.0,18806.0,0.03396416]
[1673572394375,0.1414,18808.0,18806.0,0.04296416]
[1673572394608,0.1414,18808.0,18806.0,0.03396416]
[1673572394857,0.03231483,18807.0,18806.0,0.04296416]
[1673572395107,0.03231483,18807.0,18806.0,0.06980588]
[1673572395356,0.015,18808.0,18807.0,0.12816671]
[1673572395649,0.02,18809.0,18807.0,0.45874171]
[1673572395878,0.02,18809.0,18808.0,0.330575]
[1673572396121,0.5454628,18809.0,18807.0,0.12816671]
[1673572396371,0.015,18808.0,18807.0,0.13716671]
[1673572396700,0.015,18808.0,18807.0,0.46774171]
[1673572397140,0.5454628,18809.0,18807.0,0.45874171]
[1673572397141,0.02,18809.0,18807.0,0.45874171]
[1673572397351,0.035,18809.0,18808.0,0.330575]
[1673572397593,0.035,18809.0,18807.0,0.03716671]
[1673572397808,0.02,18809.0,18807.0,0.03716671]
[1673572398071,0.015,18808.0,18807.0,0.03716671]
[1673572398328,0.02,18809.0,18807.0,0.02822671]
[1673572398566,0.02,18809.0,18808.0,0.009]
[1673572398567,0.035,18809.0,18808.0,0.009]
[1673572398825,0.02,18809.0,18807.0,0.02822671]
[1673572399063,0.035,18809.0,18807.0,0.03722671]
[1673572401802,0.64793342,18809.0,18807.0,0.03722671]
[1673572402333,0.88893342,18809.0,18807.0,0.03722671]
[1673572402577,0.88893342,18809.0,18807.0,0.00906]
[1673572402834,0.8136167,18808.0,18807.0,0.00906]
[1673572403315,0.6199567,18808.0,18807.0,0.009]
[1673572404580,0.6199567,18808.0,18807.0,0.018]
[1673572404833,0.6349567,18808.0,18807.0,0.018]
[1673572405333,0.9286167,18808.0,18807.0,0.018]
[1673572405818,0.6349567,18808.0,18807.0,0.018]
[1673572406567,0.6549567,18808.0,18807.0,0.018]
[1673572406823,0.5549567,18808.0,18807.0,0.018]
[1673572407068,0.5549567,18808.0,18807.0,0.0189245]
[1673572407823,0.035,18808.0,18807.0,0.0189245]
[1673572408086,0.035,18808.0,18807.0,0.05202565]
[1673572409085,0.035,18808.0,18807.0,0.018]
[1673572410243,0.035,18808.0,18807.0,0.04816969]
[1673572410486,0.035,18808.0,18807.0,0.37874469]
[1673572411237,0.035,18808.0,18807.0,0.63802758]
[1673572411495,0.035,18808.0,18807.0,1.80355961]
[1673572412733,0.035,18808.0,18807.0,1.77338992]
[1673572412977,0.035,18808.0,18807.0,1.61410703]
[1673572413245,0.035,18808.0,18807.0,1.93084247]
[1673572413492,0.035,18808.0,18807.0,1.02319307]
[1673572413746,0.035,18808.0,18807.0,0.92319307]
[1673572414265,0.035,18808.0,18807.0,0.68427138]
[1673572415527,0.035,18808.0,18807.0,0.52501788]
[1673572418362,0.035,18808.0,18807.0,0.38361788]
[1673572418579,0.035,18808.0,18807.0,0.05304288]
[1673572418580,0.1763,18808.0,18807.0,0.05304288]
[1673572418827,0.1763,18808.0,18807.0,0.018]
[1673572419073,0.97483131,18808.0,18807.0,0.018]
[1673572419323,1.26849131,18808.0,18807.0,0.018]
[1673572419838,0.97483131,18808.0,18807.0,0.018]
[1673572420088,1.26849131,18808.0,18807.0,0.018]
[1673572420335,0.97483131,18808.0,18807.0,0.018]
[1673572420600,1.26849131,18808.0,18807.0,0.018]
[1673572420848,0.97483131,18808.0,18807.0,0.018]
[1673572424106,1.26849131,18808.0,18807.0,0.018]
[1673572424366,0.97483131,18808.0,18807.0,0.018]
[1673572424898,1.26849131,18808.0,18807.0,0.018]
[1673572425157,1.16849131,18808.0,18807.0,0.018]
[1673572425408,0.73353131,18808.0,18807.0,0.018]
[1673572430522,1.18552432,18808.0,18807.0,0.018]
[1673572430795,1.58552432,18808.0,18807.0,0.018]
[1673572431036,1.28552432,18808.0,18807.0,0.018]
[1673572431258,1.28552432,18808.0,18807.0,0.01789909]
[1673572431259,2.04849031,18808.0,18807.0,0.01789909]
[1673572431500,1.58552432,18808.0,18807.0,0.01789909]
[1673572431737,0.99186432,18808.0,18807.0,0.01789909]
[1673572431955,1.28552432,18808.0,18807.0,0.01789909]
[1673572432311,0.99186432,18808.0,18807.0,0.01789909]
[1673572433516,1.28552432,18808.0,18807.0,0.01789909]
[1673572433693,0.99186432,18808.0,18807.0,0.01789909]
[1673572434975,1.28552432,18808.0,18807.0,0.01789909]
[1673572435197,1.58552432,18808.0,18807.0,0.01789909]
[1673572435677,1.51099283,18808.0,18807.0,0.01789909]
[1673572435911,1.28552432,18808.0,18807.0,0.01789909]
[1673572436398,0.99186432,18808.0,18807.0,0.01789909]
[1673572436622,1.28552432,18808.0,18807.0,0.01789909]
[1673572438513,1.13326432,18808.0,18807.0,0.01789909]
[1673572438784,1.42692432,18808.0,18807.0,0.01789909]
[1673572439021,1.63653283,18808.0,18807.0,0.01789909]
[1673572439498,1.72692432,18808.0,18807.0,0.01789909]
[1673572439733,1.58552432,18808.0,18807.0,0.01789909]
[1673572439984,1.26529049,18808.0,18807.0,0.01789909]
[1673572440217,2.26804892,18808.0,18807.0,0.01789909]
[1673572440454,1.56462078,18808.0,18807.0,0.01789909]
[1673572440694,2.41443643,18808.0,18807.0,0.01789909]
[1673572440967,2.25615568,18808.0,18807.0,0.01789909]
[1673572441706,2.25615568,18808.0,18807.0,0.01704909]
[1673572443376,1.97435568,18808.0,18807.0,0.01704909]
[1673572443625,2.25605568,18808.0,18807.0,0.01704909]
[1673572444845,2.04851069,18808.0,18807.0,0.01704909]
[1673572445323,1.81101321,18808.0,18807.0,0.01704909]
[1673572446777,2.04851069,18808.0,18807.0,0.01704909]
[1673572447467,1.81101321,18808.0,18807.0,0.01704909]
[1673572447698,2.04851069,18808.0,18807.0,0.01704909]
[1673572448418,1.76681069,18808.0,18807.0,0.01704909]
[1673572449138,2.026241,18808.0,18807.0,0.01704909]
[1673572449391,1.6995063,18808.0,18807.0,0.01704909]
[1673572450340,2.75215719,18808.0,18807.0,0.01704909]
[1673572450579,2.32745719,18808.0,18807.0,0.01704909]
[1673572450804,2.3827042,18808.0,18807.0,0.01704909]
[1673572451315,2.0660409,18808.0,18807.0,0.01704909]
[1673572451552,2.28414499,18808.0,18807.0,0.01704909]
[1673572451793,3.55754499,18808.0,18807.0,0.01704909]
[1673572452032,3.55754499,18808.0,18807.0,9e-08]
[1673572452256,3.55754499,18808.0,18806.0,0.00614588]
[1673572452257,3.84938801,18808.0,18806.0,0.00614588]
[1673572452501,3.84938801,18808.0,18806.0,8.8e-07]
[1673572452502,1.99896417,18807.0,18806.0,8.8e-07]
[1673572452735,1.99896417,18807.0,18805.0,0.00608588]
[1673572452736,2.9855057,18807.0,18805.0,0.00608588]
[1673572452990,2.25031539,18806.0,18805.0,0.00608588]
[1673572453229,2.12591539,18806.0,18805.0,0.00608588]
[1673572453470,2.6052624,18806.0,18805.0,0.00608588]
[1673572453769,2.1811624,18806.0,18805.0,0.00608588]
[1673572453930,2.6046624,18806.0,18805.0,0.00608588]
[1673572454866,2.6046624,18806.0,18805.0,0.00708588]
[1673572455075,2.6046624,18806.0,18805.0,0.00608588]
[1673572455310,2.47704205,18806.0,18805.0,0.00708588]
[1673572455530,2.80568732,18806.0,18805.0,0.00708588]
[1673572456007,3.0432014,18806.0,18805.0,0.00708588]
[1673572456697,2.6197014,18806.0,18805.0,0.00708588]
[1673572456926,2.71455613,18806.0,18805.0,0.00708588]
[1673572457906,2.72305613,18806.0,18805.0,0.00708588]
[1673572458142,2.72305613,18806.0,18804.0,0.00669624]
[1673572458386,2.12364912,18805.0,18804.0,0.00669624]
[1673572458633,2.41730912,18805.0,18802.0,0.00632535]
[1673572458891,0.85160147,18804.0,18802.0,0.00632535]
[1673572459135,0.59366,18803.0,18802.0,0.00632535]
[1673572459381,0.94523206,18803.0,18802.0,0.00632535]
[1673572459620,2.01276326,18803.0,18802.0,0.00632535]
[1673572460131,1.85446476,18803.0,18802.0,0.00632535]
[1673572460378,2.13334029,18803.0,18802.0,0.00632535]
[1673572460617,2.29163879,18803.0,18802.0,0.00632535]
[1673572460859,2.29163879,18803.0,18802.0,0.01132535]
[1673572461096,2.29163879,18803.0,18802.0,0.00632535]
[1673572461353,0.1,18802.0,18801.0,0.00669624]
[1673572461577,1.80518953,18802.0,18801.0,0.00669624]
[1673572461832,2.11368953,18802.0,18801.0,0.00669624]
[1673572462314,1.57996476,18802.0,18801.0,0.00669624]
[1673572462548,1.97296476,18802.0,18801.0,0.00769624]
[1673572463618,2.12447523,18802.0,18801.0,0.00769624]
[1673572464419,2.17078786,18802.0,18801.0,0.00769624]
[1673572465419,1.6213927,18802.0,18801.0,0.00769624]
[1673572465909,2.19070202,18802.0,18801.0,0.00769624]
[1673572466151,1.6313927,18802.0,18801.0,0.00769624]
[1673572466443,1.43178225,18802.0,18801.0,0.00769624]
[1673572466653,0.74662225,18802.0,18801.0,0.00769624]
[1673572474087,0.73162225,18802.0,18801.0,0.00769624]
[1673572479959,0.83162225,18802.0,18801.0,0.00769624]
[1673572480668,1.12528225,18802.0,18801.0,0.00769624]
[1673572480911,0.83162225,18802.0,18801.0,0.00769624]
[1673572482144,1.13162225,18802.0,18801.0,0.00769624]
[1673572482388,1.42528225,18802.0,18801.0,0.00769624]
[1673572483618,1.66063998,18802.0,18801.0,0.00769624]
[1673572483830,1.42528225,18802.0,18801.0,0.00769624]
[1673572484345,0.79866,18802.0,18801.0,0.00769624]
[1673572484839,1.08026,18802.0,18801.0,0.00769624]
[1673572485087,1.08036,18802.0,18801.0,0.00769624]
[1673572485577,1.78871111,18802.0,18801.0,0.00769624]
[1673572486070,1.23855437,18802.0,18801.0,0.00769624]
[1673572486664,1.51160918,18802.0,18801.0,0.00769624]
[1673572486915,1.23855437,18802.0,18801.0,0.00769624]
[1673572487159,1.51160909,18802.0,18801.0,0.00769624]
[1673572487364,1.74912317,18802.0,18801.0,0.00769624]
[1673572487811,2.5929542,18802.0,18801.0,0.00769624]
[1673572488095,2.59314395,18802.0,18801.0,0.00769624]
[1673572488318,2.75159011,18802.0,18801.0,0.00769624]
[1673572488766,2.90990516,18802.0,18801.0,0.00769624]
[1673572489037,2.90990516,18802.0,18801.0,2.4e-07]
[1673572489296,0.1,18801.0,18799.0,0.00669624]
[1673572489536,0.69353419,18800.0,18799.0,0.00669624]
[1673572489784,0.83516,18800.0,18799.0,0.00669624]
[1673572489994,0.99353419,18800.0,18799.0,0.00669624]
[1673572490237,0.83516,18800.0,18799.0,0.00669624]
[1673572490480,0.5415,18800.0,18799.0,0.00669624]
[1673572490724,0.5415,18800.0,18799.0,0.02269624]
[1673572490964,0.83516,18800.0,18799.0,0.00669624]
[1673572491209,0.5415,18800.0,18799.0,0.02269624]
[1673572491448,0.84316,18800.0,18799.0,0.02269624]
[1673572492175,0.5495,18800.0,18799.0,0.02269624]
[1673572492431,1.11013185,18800.0,18799.0,0.02269624]
[1673572492911,1.40379185,18800.0,18799.0,0.02269624]
[1673572493131,1.11013185,18800.0,18799.0,0.02269624]
[1673572493344,1.40379185,18800.0,18799.0,0.02269624]
[1673572493587,1.11013185,18800.0,18799.0,0.02269624]
[1673572493840,1.01013185,18800.0,18799.0,0.02269624]
[1673572494092,0.71013185,18800.0,18799.0,0.02269624]
[1673572496861,0.56863185,18800.0,18799.0,0.02269624]
[1673572497363,0.56863185,18800.0,18799.0,0.35327124]
[1673572497626,0.008,18800.0,18799.0,0.35327124]
[1673572497862,0.008,18800.0,18799.0,0.48095602]
[1673572498155,0.008,18800.0,18799.0,0.64020952]
[1673572499597,0.008,18800.0,18799.0,0.38095602]
[1673572502081,0.006421,18800.0,18799.0,0.54020952]
[1673572502331,0.01,18802.0,18801.0,0.330575]
[1673572502571,0.01,18802.0,18800.0,0.27084342]
[1673572503069,0.01,18802.0,18801.0,0.330575]
[1673572503792,0.65555308,18802.0,18800.0,0.17084342]
[1673572504568,0.75255308,18802.0,18801.0,0.003]
[1673572504866,0.65555308,18802.0,18800.0,0.17084342]
[1673572505352,0.65555308,18802.0,18800.0,0.17584342]
[1673572505601,0.67955308,18802.0,18800.0,0.17584342]
[1673572507585,0.77955308,18802.0,18800.0,0.17584342]
[1673572507841,0.67955308,18802.0,18800.0,0.17584342]
[1673572508095,0.02806673,18801.0,18800.0,0.17584342]
[1673572508308,0.02806673,18801.0,18800.0,0.50641842]
[1673572509292,0.02806673,18801.0,18800.0,0.50141842]
[1673572509552,0.05206673,18801.0,18800.0,0.50641842]
[1673572511592,0.05206673,18801.0,18800.0,0.66567192]
[1673572511842,0.05206673,18801.0,18800.0,0.52487192]
[1673572513091,0.05206673,18801.0,18800.0,0.4964075]
[1673572513346,0.05206673,18801.0,18800.0,0.94563413]
[1673572513592,0.05206673,18801.0,18800.0,2.6791255]
[1673572513833,0.01,18802.0,18801.0,0.53470845]
[1673572514078,0.01,18802.0,18801.0,2.49164436]
[1673572514325,0.01086861,18807.0,18802.0,0.1]
[1673572514579,0.01086861,18807.0,18805.0,0.1402]
[1673572514826,0.01086861,18807.0,18806.0,0.330575]
[1673572515330,0.01086861,18807.0,18806.0,0.82347994]
[1673572515576,0.01086861,18807.0,18806.0,0.613175]
[1673572515823,0.14686861,18807.0,18806.0,0.613175]
[1673572516069,0.01086861,18807.0,18806.0,0.71166305]